bitfinex-derivatives/quotes_SOLF0:USTF0_20260310
["timestamp","ask_amount","ask_price","bid_price","bid_amount"]
[1773171656947,2.08777285,86.199,86.132,4.02704257]
[1773171657148,10.44,86.197,86.132,4.02704257]
[1773171657454,9.27395206,86.19,86.111,4.02704257]
[1773171657748,283.46131281,86.213,86.134,4.02704257]
[1773171657951,2.08777285,86.199,86.114,4.02704257]
[1773171658141,283.46131281,86.213,86.114,4.02704257]
[1773171658345,283.46131281,86.213,86.151,10.446]
[1773171658652,283.46131281,86.213,86.131,4.02704257]
[1773171658848,2.08777285,86.212,86.131,4.02704257]
[1773171659049,11.42848768,86.2,86.131,4.02704257]
[1773171659243,2.15453562,86.199,86.131,4.02704257]
[1773171659652,10.441,86.187,86.131,4.02704257]
[1773171660149,2.15453562,86.173,86.109,4.02704257]
[1773171660342,9.23470595,86.16,86.081,4.02704257]
[1773171660546,2.15453562,86.208,86.081,4.02704257]
[1773171660742,2.01998508,86.209,86.081,4.02704257]
[1773171660743,2.15453562,86.189,86.081,4.02704257]
[1773171661048,10.442,86.181,86.117,10.45]
[1773171661253,2.1386743,86.209,86.121,4.02704257]
[1773171661959,283.46131281,86.213,86.15,4.02704257]
[1773171662161,2.1386743,86.209,86.129,4.02704257]
[1773171662557,10.44,86.198,86.134,10.448]
[1773171662760,2.1386743,86.189,86.105,4.02704257]
[1773171663060,1.9924758,86.189,86.106,4.02704257]
[1773171663361,1.9924758,86.189,86.08,13.26174852]
[1773171663658,1.9924758,86.169,86.08,4.02704257]
[1773171664269,10.446,86.152,86.097,10.452]
[1773171664457,10.446,86.152,86.08,4.02704257]
[1773171664458,1.9924758,86.149,86.08,4.02704257]
[1773171665262,11.33961401,86.17,86.081,4.02704257]
[1773171665456,11.33961401,86.17,86.104,4.02704257]
[1773171666463,21.78261401,86.17,86.11,10.451]
[1773171666665,11.33961401,86.17,86.104,4.02704257]
[1773171666962,2.1002688,86.169,86.11,10.451]
[1773171667259,2.1002688,86.169,86.104,4.02704257]
[1773171667460,2.1002688,86.157,86.09,10.453]
[1773171667666,9.23470595,86.15,86.09,10.453]
[1773171667865,2.1002688,86.149,86.082,4.02704257]
[1773171668166,10.446,86.147,86.085,10.454]
[1773171668557,2.1002688,86.149,86.092,10.453]
[1773171668965,2.1002688,86.149,86.086,4.02704257]
[1773171669363,2.1002688,86.149,86.06,9.23470595]
[1773171669364,2.1002688,86.149,86.061,4.02704257]
[1773171669670,2.15392204,86.167,86.081,4.02704257]
[1773171670370,2.15392204,86.167,86.08,9.23470595]
[1773171670371,2.15392204,86.167,86.104,4.02704257]
[1773171670962,10.444,86.164,86.104,4.02704257]
[1773171671266,2.1508867,86.163,86.067,4.02704257]
[1773171671462,10.447,86.141,86.086,10.454]
[1773171671865,2.1508867,86.149,86.067,4.02704257]
[1773171672063,10.449,86.124,86.074,10.455]
[1773171672567,9.23470595,86.13,86.067,4.02704257]
[1773171672761,10.447,86.143,86.082,10.454]
[1773171672962,2.1508867,86.149,86.082,10.454]
[1773171673465,9.23470595,86.15,86.091,4.02704257]
[1773171673659,11.40940105,86.17,86.091,4.02704257]
[1773171673864,11.40940105,86.17,86.106,4.02704257]
[1773171674367,162.334,86.238,86.106,4.02704257]
[1773171674368,9.23470595,86.19,86.106,4.02704257]
[1773171674566,2.1746951,86.189,86.106,4.02704257]
[1773171675069,10.443,86.177,86.115,10.45]
[1773171675371,2.17547212,86.169,86.106,4.02704257]
[1773171676164,9.23470595,86.17,86.106,4.02704257]
[1773171676971,9.23470595,86.17,86.071,4.02704257]
[1773171676972,2.22692008,86.161,86.071,4.02704257]
[1773171677561,10.447,86.144,86.071,4.02704257]
[1773171677966,2.22692008,86.143,86.071,4.02704257]
[1773171678163,2.22692008,86.139,86.071,4.02704257]
[1773171679463,11.49623165,86.12,86.053,3.83348841]
[1773171680468,11.49623165,86.12,86.062,10.457]
[1773171680469,10.45,86.113,86.062,10.457]
[1773171680868,11.49623165,86.12,86.053,3.83348841]
[1773171681070,11.49623165,86.12,86.077,10.455]
[1773171681270,9.23470595,86.16,86.061,3.83348841]
[1773171681475,9.23470595,86.16,86.041,34.99]
[1773171681476,9.23470595,86.16,86.081,3.83348841]
[1773171681671,10.446,86.149,86.098,10.452]
[1773171682171,11.4790566,86.14,86.081,3.83348841]
[1773171682373,162.354,86.228,86.081,3.83348841]
[1773171682374,9.23470595,86.16,86.081,3.83348841]
[1773171682574,2.24435065,86.159,86.081,3.83348841]
[1773171684180,10.448,86.134,86.081,14.28748841]
[1773171684567,2.25346273,86.139,86.068,10.456]
[1773171684772,2.25346273,86.139,86.062,3.83348841]
[1773171686277,10.449,86.125,86.062,3.83348841]
[1773171686479,2.30963908,86.129,86.062,3.83348841]
[1773171687583,10.449,86.127,86.078,10.455]
[1773171687986,10.449,86.127,86.062,3.83348841]
[1773171687987,2.30660605,86.126,86.062,3.83348841]
[1773171689285,2.30660605,86.126,86.07,10.456]
[1773171690280,2.30660605,86.126,86.062,3.83348841]
[1773171690281,10.451,86.112,86.062,14.28948841]
[1773171690482,2.31149668,86.109,86.043,3.83348841]
[1773171690787,2.31149668,86.109,86.021,3.83348841]
[1773171691780,9.23470595,86.1,86.021,3.83348841]
[1773171692485,2.31149668,86.109,86.054,10.457]
[1773171692987,8.71621475,86.129,86.04,3.83348841]
[1773171692988,2.29757694,86.129,86.065,3.83348841]
[1773171693688,2.29757694,86.129,86.077,10.455]
[1773171694188,8.80182681,86.128,86.077,10.455]
[1773171694488,2.31616323,86.119,86.047,3.83348841]
[1773171694889,2.31616323,86.117,86.047,3.83348841]
[1773171695080,10.452,86.097,86.051,10.458]
[1773171695689,12.76754325,86.097,86.051,10.458]
[1773171696284,12.76754325,86.097,86.043,10.459]
[1773171696584,2.31554325,86.097,86.028,3.83348841]
[1773171696892,2.31554325,86.095,86.028,3.83348841]
[1773171697086,8.80182681,86.109,86.055,10.457]
[1773171697389,8.80182681,86.108,86.055,10.457]
[1773171697592,8.80182681,86.123,86.045,3.83348841]
[1773171697891,9.23470595,86.13,86.045,3.83348841]
[1773171698392,10.449,86.128,86.084,10.454]
[1773171698690,2.22301552,86.135,86.068,3.83348841]
[1773171699584,9.23470595,86.14,86.068,3.83348841]
[1773171699784,10.447,86.138,86.089,10.453]
[1773171700190,2.28855605,86.149,86.089,10.453]
[1773171700589,10.447,86.141,86.088,3.83348841]
[1773171700785,2.28855605,86.139,86.067,3.83348841]
[1773171701393,2.35335684,86.137,86.067,3.83348841]
[1773171701691,2.35335684,86.135,86.067,3.83348841]
[1773171701988,9.23470595,86.12,86.067,3.83348841]
[1773171702694,8.82964018,86.134,86.067,3.83348841]
[1773171702892,2.35335684,86.135,86.067,3.83348841]
[1773171703792,10.447,86.143,86.085,3.83348841]
[1773171703992,2.29091745,86.147,86.085,3.83348841]
[1773171704497,2.29091745,86.145,86.088,10.453]
[1773171704898,2.29091745,86.139,86.079,10.454]
[1773171705100,2.2777939,86.137,86.066,3.83348841]
[1773171705691,10.449,86.123,86.07,10.456]
[1773171705894,8.84881281,86.134,86.066,3.83348841]
[1773171706092,2.2777939,86.132,86.066,3.83348841]
[1773171706299,2.2777939,86.13,86.066,3.83348841]
[1773171706498,2.2777939,86.13,86.067,10.456]
[1773171706499,8.84881281,86.129,86.067,10.456]
[1773171706796,8.84881281,86.128,86.067,10.456]
[1773171706996,8.84881281,86.127,86.067,10.456]
[1773171707197,2.20624555,86.099,86.021,3.72621033]
[1773171707499,2.20624555,86.097,86.021,3.72621033]
[1773171707700,10.453,86.092,86.021,3.72621033]
[1773171707901,2.20624555,86.097,86.021,3.72621033]
[1773171708101,2.20624555,86.095,86.021,3.72621033]
[1773171708600,2.20624555,86.093,86.021,3.72621033]
[1773171708994,2.20624555,86.093,86.029,3.72621033]
[1773171708995,10.453,86.09,86.029,3.72621033]
[1773171710495,10.453,86.09,86.034,10.46]
[1773171710805,10.453,86.09,86.034,14.30702256]
[1773171712403,10.63503597,86.117,85.921,60.63026222]
[1773171712404,9.23470595,86.12,86.041,3.84702256]
[1773171713506,2.18244578,86.118,86.041,3.84702256]
[1773171714208,2.18244578,86.117,86.041,3.84702256]
[1773171714405,2.18244578,86.117,86.054,3.84702256]
[1773171715110,9.23470595,86.12,86.02,9.23470595]
[1773171715111,2.1924383,86.115,86.035,3.84702256]
[1773171715304,9.23470595,86.1,86.035,3.84702256]
[1773171716205,10.453,86.089,86.035,3.84702256]
[1773171716410,2.1924383,86.099,86.035,3.84702256]
[1773171716614,9.23470595,86.08,86.001,3.84702256]
[1773171716915,2.1924383,86.079,86.001,3.84702256]
[1773171718306,10.455,86.076,86.001,3.84702256]
[1773171718511,2.1924383,86.079,86.001,3.84702256]
[1773171718905,2.1924383,86.079,86.015,3.84702256]
[1773171719906,10.455,86.078,86.028,10.461]
[1773171720309,9.25782893,86.09,86.015,3.84702256]
[1773171720710,10.454,86.079,86.035,10.46]
[1773171721217,10.453,86.088,86.038,3.84702256]
[1773171722415,10.453,86.088,86.042,10.459]
[1773171722609,10.454,86.085,86.042,10.459]
[1773171723314,10.454,86.085,86.033,10.46]
[1773171723609,10.454,86.085,85.99,9.25782893]
[1773171723610,8.84062578,86.099,86.034,3.84702256]
[1773171723810,8.84062578,86.123,86.034,3.84702256]
[1773171724016,2.08484713,86.121,86.06,14.30402256]
[1773171724215,2.08484713,86.109,86.042,3.84702256]
[1773171724911,2.08484713,86.109,86.01,9.25782893]
[1773171724912,2.08484713,86.107,86.003,3.84702256]
[1773171725211,2.08484713,86.107,86.043,3.84702256]
[1773171725212,9.25782893,86.09,86.043,3.84702256]
[1773171725411,10.93664269,86.105,86.043,3.84702256]
[1773171725616,8.84636017,86.104,86.043,3.84702256]
[1773171725818,8.84636017,86.103,86.043,3.84702256]
[1773171726012,8.84636017,86.102,86.043,3.84702256]
[1773171726208,8.84636017,86.101,86.043,3.84702256]
[1773171726416,8.84636017,86.104,86.043,3.84702256]
[1773171726610,2.09028252,86.105,86.043,3.84702256]
[1773171727116,2.09028252,86.105,86.021,3.84702256]
[1773171727418,2.05942022,86.089,86.021,3.84702256]
[1773171727617,2.05942022,86.087,86.021,3.84702256]
[1773171727810,2.05942022,86.085,86.021,3.84702256]
[1773171728015,10.455,86.073,86.028,10.461]
[1773171728212,2.05942022,86.083,86.028,10.461]
[1773171728416,8.84636017,86.089,86.028,3.84702256]
[1773171728619,10.453,86.088,86.035,10.46]
[1773171728819,8.84636017,86.1,86.036,3.84702256]
[1773171729019,8.84636017,86.109,86.036,3.84702256]
[1773171729322,11.31746538,86.11,86.057,3.84702256]
[1773171729519,2.05963645,86.108,86.021,3.84702256]
[1773171729720,10.90599662,86.108,86.021,3.84702256]
[1773171729915,10.453,86.093,86.045,10.459]
[1773171730118,2.05963645,86.105,86.021,3.84702256]
[1773171730316,2.05963645,86.103,86.021,3.84702256]
[1773171730513,2.05963645,86.101,86.021,3.84702256]
[1773171730718,10.90599662,86.1,86.021,3.84702256]
[1773171730920,8.84636017,86.099,86.021,3.84702256]
[1773171731220,10.452,86.096,86.044,14.30602256]
[1773171731416,8.84636017,86.099,86.044,3.84702256]
[1773171731621,8.84636017,86.098,86.044,3.84702256]
[1773171731922,2.09477222,86.108,86.044,3.84702256]
[1773171732123,10.94113239,86.107,86.044,3.84702256]
[1773171732321,8.84636017,86.106,86.044,3.84702256]
[1773171732524,8.84636017,86.105,86.044,3.84702256]
[1773171732725,8.84636017,86.104,86.044,3.84702256]
[1773171732920,8.84636017,86.103,86.044,3.84702256]
[1773171733121,10.453,86.09,86.044,3.84702256]
[1773171734420,2.10684867,86.089,86.041,10.459]
[1773171734617,2.10684867,86.087,86.017,3.84702256]
[1773171734818,8.84636017,86.086,86.017,3.84702256]
[1773171735027,8.84636017,86.085,86.017,3.84702256]
[1773171735222,8.84636017,86.086,86.04,3.84702256]
[1773171735424,8.84636017,86.102,86.04,3.84702256]
[1773171735628,8.84636017,86.101,86.04,3.84702256]
[1773171735823,8.84636017,86.1,86.04,3.84702256]
[1773171736024,8.84636017,86.099,86.046,10.458]
[1773171736224,8.84636017,86.098,86.046,10.458]
[1773171736419,10.452,86.099,86.046,10.458]
[1773171736625,10.9557532,86.103,86.046,10.458]
[1773171736826,2.10939303,86.101,86.04,3.84702256]
[1773171737022,10.455,86.079,86.022,3.84702256]
[1773171737224,8.84636017,86.089,86.022,3.84702256]
[1773171737428,9.25782893,86.09,86.022,3.84702256]
[1773171737628,10.454,86.082,86.034,10.46]
[1773171738027,8.84636017,86.089,86.035,3.84702256]
[1773171738222,2.1108587,86.098,86.035,3.84702256]
[1773171738429,10.454,86.084,86.037,10.46]
[1773171743434,10.454,86.084,86.035,3.84702256]
[1773171743832,2.42728954,86.115,86.035,3.84702256]
[1773171744028,2.42728954,86.115,86.059,14.17500946]
[1773171744029,8.84904498,86.114,86.059,14.17500946]
[1773171744333,2.42728954,86.112,86.059,14.17500946]
[1773171744638,2.42728954,86.11,86.059,14.17500946]
[1773171744836,11.27633452,86.109,86.059,14.17500946]
[1773171745138,2.42728954,86.109,86.065,10.456]
[1773171745536,8.84904498,86.108,86.065,10.456]
[1773171745933,2.42728954,86.109,86.065,10.456]
[1773171746338,8.85987523,86.108,86.059,3.71800946]
[1773171746636,11.27844735,86.107,86.059,3.71800946]
[1773171746941,11.27844735,86.106,86.029,3.71800946]
[1773171747142,8.858862,86.105,86.054,3.71800946]
[1773171747343,11.30292922,86.119,86.054,3.71800946]
[1773171747646,8.8635147,86.118,86.054,3.71800946]
[1773171747939,2.43941452,86.119,86.054,3.71800946]
[1773171747940,8.8635147,86.117,86.054,3.71800946]
[1773171748142,10.451,86.108,86.06,10.457]
[1773171748341,8.8635147,86.107,86.06,10.457]
[1773171748643,10.451,86.108,86.06,10.457]
[1773171748644,8.8635147,86.106,86.06,10.457]
[1773171748843,8.8635147,86.105,86.06,10.457]
[1773171749141,8.8635147,86.104,86.06,10.457]
[1773171749339,8.8635147,86.103,86.06,10.457]
[1773171749543,8.8635147,86.102,86.06,10.457]
[1773171749743,10.452,86.1,86.054,3.71800946]
[1773171749943,8.8635147,86.099,86.054,3.71800946]
[1773171750138,8.8635147,86.098,86.054,3.71800946]
[1773171750339,8.8635147,86.097,86.054,3.71800946]
[1773171750538,2.4530963,86.117,86.054,3.71800946]
[1773171750846,8.88025012,86.116,86.054,3.71800946]
[1773171751050,8.88025012,86.115,86.054,3.71800946]
[1773171751248,10.447,86.138,86.079,3.71800946]
[1773171751446,8.88199577,86.137,86.079,3.71800946]
[1773171751643,8.88199577,86.136,86.079,3.71800946]
[1773171751846,8.88199577,86.135,86.095,3.71800946]
[1773171752045,10.446,86.147,86.095,3.71800946]
[1773171752251,8.87730451,86.146,86.095,3.71800946]
[1773171752451,8.87730451,86.145,86.095,3.71800946]
[1773171752653,8.87730451,86.144,86.102,10.452]
[1773171752853,8.87730451,86.143,86.102,10.452]
[1773171753054,8.87730451,86.142,86.102,10.452]
[1773171753351,10.446,86.148,86.095,3.71800946]
[1773171753552,2.67691734,86.146,86.061,3.71800946]
[1773171753754,2.67691734,86.144,86.061,3.71800946]
[1773171753946,2.67691734,86.142,86.061,3.71800946]
[1773171754145,2.67691734,86.132,86.061,3.71800946]
[1773171754548,9.25782893,86.15,86.061,3.71800946]
[1773171754549,2.67691734,86.13,86.061,3.71800946]
[1773171755855,10.447,86.143,86.089,3.71800946]
[1773171756054,8.87730451,86.145,86.089,3.71800946]
[1773171756251,2.68304584,86.146,86.089,3.71800946]
[1773171756556,8.87730451,86.162,86.089,3.71800946]
[1773171756757,10.445,86.16,86.108,10.451]
[1773171757057,8.87730451,86.159,86.108,10.451]
[1773171757357,10.445,86.16,86.108,10.451]
[1773171757358,8.87730451,86.158,86.108,10.451]
[1773171757550,8.87730451,86.158,86.105,3.71800946]
[1773171757551,10.446,86.151,86.105,3.71800946]
[1773171757952,8.87730451,86.155,86.105,3.71800946]
[1773171758157,11.55829882,86.162,86.105,3.71800946]
[1773171758451,11.55829882,86.161,86.105,3.71800946]
[1773171758657,8.87730451,86.16,86.105,3.71800946]
[1773171758859,8.87730451,86.159,86.105,3.71800946]
[1773171759049,8.87730451,86.158,86.105,3.71800946]
[1773171759251,9.25782893,86.17,86.105,3.71800946]
[1773171759252,11.49645879,86.16,86.105,3.71800946]
[1773171759454,2.61915428,86.158,86.105,3.71800946]
[1773171760455,10.446,86.15,86.105,3.71800946]
[1773171760959,10.446,86.15,86.089,3.71800946]
[1773171760960,2.61915428,86.137,86.089,3.71800946]
[1773171762054,2.61733721,86.129,86.061,3.71800946]
[1773171763255,2.61733721,86.129,86.063,3.71800946]
[1773171764462,10.45,86.114,86.066,10.456]
[1773171764864,2.62826231,86.113,86.032,3.71800946]
[1773171765362,2.62826231,86.113,86.064,10.456]
[1773171765560,2.60038679,86.129,86.058,3.71800946]
[1773171766055,10.45,86.118,86.07,10.456]
[1773171766661,10.45,86.118,86.074,10.455]
[1773171767667,13.05073625,86.127,86.081,10.454]
[1773171767966,2.60173625,86.127,86.081,10.454]
[1773171768166,10.448,86.134,86.086,4.00324854]
[1773171768764,13.05073625,86.129,86.081,10.454]
[1773171768965,2.60173625,86.128,86.081,10.454]
[1773171769363,10.45,86.119,86.074,10.455]
[1773171770560,13.05073625,86.128,86.082,10.454]
[1773171771268,2.59924389,86.144,86.086,3.78338857]
[1773171771471,21.45963016,86.181,86.086,3.78338857]
[1773171771472,8.84337032,86.158,86.086,3.78338857]
[1773171771769,2.59924389,86.16,86.117,10.45]
[1773171771962,8.84337032,86.169,86.117,3.78338857]
[1773171772164,11.44261421,86.175,86.117,3.78338857]
[1773171772362,8.84337032,86.185,86.138,10.447]
[1773171772565,10.441,86.187,86.138,10.447]
[1773171773067,10.441,86.187,86.134,3.78338857]
[1773171773068,2.53990852,86.178,86.101,3.78338857]
[1773171773566,2.53990852,86.193,86.13,3.78338857]
[1773171775373,10.442,86.181,86.13,3.78338857]
[1773171776676,10.443,86.178,86.13,3.78338857]
[1773171777268,2.54721322,86.18,86.131,14.23138857]
[1773171777469,2.53246201,86.218,86.132,3.78338857]
[1773171777971,2.53246201,86.218,86.12,9.25782893]
[1773171777972,2.53246201,86.218,86.158,3.78338857]
[1773171778271,8.80486763,86.234,86.158,3.78338857]
[1773171778472,11.79029094,86.24,86.184,10.442]
[1773171778775,11.79029094,86.24,86.179,3.78338857]
[1773171779170,11.79029094,86.24,86.192,10.441]
[1773171779575,2.52735168,86.257,86.192,3.78338857]
[1773171779776,2.52735168,86.254,86.201,10.44]
[1773171779977,2.52735168,86.254,86.171,3.78338857]
[1773171781179,2.01862003,86.279,86.171,3.78338857]
[1773171781180,2.51063563,86.239,86.171,3.78338857]
[1773171781682,2.51063563,86.219,86.131,3.78338857]
[1773171782276,12.94963563,86.209,86.148,3.78338857]
[1773171782675,2.51063563,86.199,86.148,3.78338857]
[1773171783879,9.22074359,86.2,86.15,3.78338857]
[1773171784680,9.22074359,86.2,86.152,10.446]
[1773171784982,10.44,86.199,86.15,3.78338857]
[1773171785179,10.44,86.199,86.15,14.22938857]
[1773171785573,9.22074359,86.2,86.15,3.78338857]
[1773171786386,2.45764221,86.233,86.158,3.78338857]
[1773171787185,9.22074359,86.24,86.175,3.78338857]
[1773171788490,10.435,86.237,86.184,10.442]
[1773171788789,9.22074359,86.24,86.184,3.78338857]
[1773171789089,10.435,86.238,86.191,10.441]
[1773171789289,11.68196233,86.24,86.184,3.78338857]
[1773171789491,2.46121874,86.239,86.161,3.78338857]
[1773171789786,10.436,86.231,86.182,10.442]
[1773171790181,2.46121874,86.231,86.161,3.78338857]
[1773171790386,2.46121874,86.219,86.161,3.78338857]
[1773171791488,10.438,86.216,86.166,10.444]
[1773171791689,2.46121874,86.219,86.166,10.444]
[1773171791889,2.46121874,86.219,86.161,3.78338857]
[1773171792094,9.22074359,86.22,86.174,10.443]
[1773171792687,10.437,86.224,86.181,10.442]
[1773171793493,2.46147705,86.214,86.136,3.78338857]
[1773171794490,2.46147705,86.214,86.172,10.443]
[1773171794689,2.46147705,86.235,86.168,3.78338857]
[1773171796195,12.89747705,86.235,86.194,10.441]
[1773171796694,12.89747705,86.235,86.168,3.78338857]
[1773171797389,2.48221584,86.234,86.168,3.78338857]
[1773171797987,10.438,86.219,86.179,10.442]
[1773171798194,2.48221584,86.219,86.141,3.78338857]
[1773171799398,10.44,86.199,86.152,10.446]
[1773171799696,2.48221584,86.219,86.141,3.78338857]
[1773171799900,9.22074359,86.22,86.144,4.02578302]
[1773171800094,2.4791766,86.236,86.144,4.02578302]
[1773171800791,10.438,86.217,86.166,4.02578302]
[1773171802194,2.24243974,86.219,86.131,4.02578302]
[1773171802899,2.24243974,86.199,86.131,4.02578302]
[1773171803288,9.22074359,86.2,86.11,9.22074359]
[1773171803289,9.22074359,86.2,86.153,4.02578302]
[1773171803490,2.24406616,86.217,86.153,4.02578302]
[1773171803697,2.24406616,86.217,86.123,4.02578302]
[1773171804194,2.24406616,86.217,86.14,4.02578302]
[1773171804598,10.44,86.203,86.162,10.444]
[1773171806693,10.44,86.195,86.14,4.02578302]
[1773171806888,2.20979894,86.199,86.14,4.02578302]
[1773171807491,2.20517241,86.219,86.14,4.02578302]
[1773171807900,2.20517241,86.219,86.162,4.02578302]
[1773171809101,10.439,86.205,86.162,14.46978302]
[1773171810002,10.438,86.213,86.162,4.02578302]
[1773171810696,8.77037615,86.245,86.162,4.02578302]
[1773171810697,2.12849534,86.236,86.162,4.02578302]
[1773171811905,20.864,86.265,86.115,162.564]
[1773171811906,2.12761103,86.256,86.185,4.02578302]
[1773171812094,2.12761103,86.239,86.185,4.02578302]
[1773171813399,10.436,86.23,86.191,10.441]
[1773171814004,2.12761103,86.239,86.185,4.02578302]
[1773171814597,8.77037615,86.253,86.191,4.02578302]
[1773171814798,2.13201908,86.249,86.191,4.02578302]
[1773171814997,2.13201908,86.247,86.191,4.02578302]
[1773171815294,10.436,86.233,86.191,4.02578302]
[1773171815497,9.22074359,86.23,86.151,4.02578302]
[1773171815694,2.03361329,86.229,86.151,4.02578302]
[1773171815896,2.03361329,86.227,86.167,4.02578302]
[1773171816100,2.03361329,86.225,86.167,4.02578302]
[1773171816305,2.03361329,86.223,86.167,4.02578302]
[1773171816500,2.03361329,86.221,86.167,4.02578302]
[1773171816696,8.77037615,86.22,86.178,4.02578302]
[1773171816900,8.84152265,86.219,86.178,4.02578302]
[1773171817106,8.84677445,86.218,86.178,4.02578302]
[1773171817298,8.84677445,86.217,86.178,4.02578302]
[1773171817602,8.84673372,86.229,86.178,4.02578302]
[1773171817807,8.84673372,86.228,86.178,4.02578302]
[1773171818111,10.437,86.225,86.18,4.02578302]
[1773171818303,8.84673372,86.224,86.18,4.02578302]
[1773171818507,8.84673372,86.223,86.18,4.02578302]
[1773171818702,8.84673372,86.222,86.18,4.02578302]
[1773171819000,10.437,86.225,86.18,4.02578302]
[1773171819404,10.437,86.225,86.181,14.46778302]
[1773171819806,10.436,86.233,86.182,4.02578302]
[1773171820008,8.85115545,86.232,86.182,4.02578302]
[1773171820206,1.93608942,86.23,86.151,4.02578302]
[1773171820406,8.85115545,86.229,86.153,4.02578302]
[1773171820605,8.85115545,86.228,86.153,4.02578302]
[1773171820808,1.93608942,86.25,86.195,4.02578302]
[1773171821002,8.85377435,86.249,86.195,4.02578302]
[1773171821204,8.85377435,86.248,86.195,4.02578302]
[1773171821407,12.74921533,86.267,86.17,9.22074359]
[1773171821408,1.93550763,86.267,86.215,4.02578302]
[1773171821706,1.93550763,86.267,86.172,20.887]
[1773171821707,1.93550763,86.259,86.192,4.02578302]
[1773171821902,1.93550763,86.257,86.192,4.02578302]
[1773171822103,1.93550763,86.255,86.192,4.02578302]
[1773171822410,1.93550763,86.253,86.192,4.02578302]
[1773171822611,10.78914715,86.252,86.192,4.02578302]
[1773171822807,8.85363952,86.251,86.192,4.02578302]
[1773171823007,10.434,86.246,86.203,10.439]
[1773171823208,8.85363952,86.245,86.203,10.439]
[1773171823410,8.85363952,86.244,86.203,10.439]
[1773171823711,1.97285926,86.235,86.171,4.02578302]
[1773171823903,9.22074359,86.24,86.171,4.02578302]
[1773171823904,1.97285926,86.233,86.171,4.02578302]
[1773171824107,8.85363952,86.232,86.171,4.02578302]
[1773171824308,8.85363952,86.231,86.186,10.441]
[1773171824509,1.97285926,86.252,86.187,4.02578302]
[1773171824710,8.85624302,86.251,86.187,4.02578302]
[1773171824909,8.85624302,86.25,86.187,4.02578302]
[1773171825112,8.85624302,86.249,86.187,4.02578302]
[1773171825412,8.85624302,86.248,86.187,4.02578302]
[1773171825606,8.85624302,86.247,86.206,10.439]
[1773171825800,8.85624302,86.246,86.206,10.439]
[1773171826007,8.85624302,86.245,86.206,10.439]
[1773171826304,10.434,86.248,86.206,10.439]
[1773171826305,8.85624302,86.244,86.206,10.439]
[1773171826510,8.85624302,86.243,86.206,10.439]
[1773171826812,10.434,86.248,86.187,4.02578302]
[1773171826813,1.97150303,86.239,86.187,4.02578302]
[1773171827512,1.96562308,86.237,86.161,3.77234744]
[1773171827812,10.81871849,86.236,86.161,3.77234744]
[1773171828010,10.436,86.23,86.18,10.442]
[1773171828207,8.85309541,86.229,86.161,3.77234744]
[1773171828412,8.85309541,86.228,86.161,3.77234744]
[1773171828615,10.436,86.23,86.161,3.77234744]
[1773171828805,8.85612544,86.229,86.161,3.77234744]
[1773171829006,1.96562308,86.236,86.182,3.77234744]
[1773171829201,8.85542958,86.235,86.182,3.77234744]
[1773171829410,8.85542958,86.234,86.182,3.77234744]
[1773171829612,19.29142958,86.233,86.193,10.441]
[1773171829804,8.85542958,86.232,86.193,10.441]
[1773171830011,8.85542958,86.231,86.193,10.441]
[1773171830214,8.85542958,86.23,86.193,10.441]
[1773171830508,8.85542958,86.229,86.182,3.77234744]
[1773171830712,8.85542958,86.228,86.182,3.77234744]
[1773171830910,8.85542958,86.227,86.182,3.77234744]
[1773171831110,8.85542958,86.226,86.182,3.77234744]
[1773171831311,10.437,86.224,86.183,10.442]
[1773171834414,10.438,86.217,86.176,10.443]
[1773171834608,1.94094842,86.224,86.176,10.443]
[1773171834810,8.86212706,86.223,86.176,10.443]
[1773171835010,8.86212706,86.222,86.176,10.443]
[1773171835213,8.86212706,86.221,86.176,10.443]
[1773171835415,1.94094842,86.224,86.176,10.443]
[1773171835719,10.437,86.222,86.176,10.443]
[1773171835920,8.86203212,86.221,86.176,10.443]
[1773171836121,10.437,86.222,86.176,10.443]
[1773171836420,8.86222957,86.221,86.176,10.443]
[1773171836620,10.437,86.222,86.176,10.443]
[1773171836819,8.86222957,86.221,86.176,10.443]
[1773171837118,10.437,86.222,86.176,10.443]
[1773171837318,10.437,86.22,86.176,10.443]
[1773171837518,13.88137161,86.22,86.176,10.443]
[1773171838124,3.44437161,86.21,86.176,10.443]
[1773171840520,1.94094842,86.224,86.168,10.444]
[1773171840521,3.44437161,86.2,86.168,10.444]